bitfinex-derivatives/quotes_ETHF0:USTF0_20250327
["timestamp","ask_amount","ask_price","bid_price","bid_amount"]
[1743077422777,2.34616491,2019.7,2019.6,2.28527]
[1743077422973,1.35604491,2019.7,2019.6,2.28527]
[1743077423874,1.35604491,2019.7,2019.6,5.49307]
[1743077426587,0.00744491,2019.7,2019.6,5.49307]
[1743077427287,0.99756491,2019.7,2019.6,5.49307]
[1743077427580,0.99756491,2019.7,2019.6,4.19797]
[1743077427786,1.69786491,2019.7,2019.6,0.99017]
[1743077429680,3.02926491,2019.7,2019.6,0.99017]
[1743077430080,2.32896491,2019.7,2019.6,0.99017]
[1743077430687,2.32896491,2019.7,2019.6,2.39847]
[1743077432683,5.53676491,2019.7,2019.6,1.4083]
[1743077433290,5.53676491,2019.7,2019.6,2.39847]
[1743077433790,5.53676491,2019.7,2019.6,1.4083]
[1743077433982,5.53676491,2019.7,2019.6,2.39847]
[1743077434783,0.99022,2019.6,2019.5,0.99018]
[1743077434990,2.37632,2019.6,2019.5,2.38538]
[1743077438690,4.20540491,2019.7,2019.6,0.99017]
[1743077439000,3.21524491,2019.7,2019.6,2.33417]
[1743077440688,0.00744491,2019.7,2019.6,2.33417]
[1743077456401,4.91e-06,2019.7,2019.6,2.33417]
[1743077456909,4.91e-06,2019.7,2019.6,43.13417]
[1743077458601,4.91e-06,2019.7,2019.6,43.80257]
[1743077460709,4.91e-06,2019.7,2019.6,48.51257]
[1743077461006,4.91e-06,2019.7,2019.6,46.30257]
[1743077461208,4.91e-06,2019.7,2019.6,43.80257]
[1743077461510,4.91e-06,2019.7,2019.6,3.00257]
[1743077461909,4.91e-06,2019.7,2019.6,43.80257]
[1743077462606,4.91e-06,2019.7,2019.6,2.33417]
[1743077463106,1.29260491,2019.7,2019.6,43.13417]
[1743077464009,2.00680491,2019.7,2019.6,43.13417]
[1743077465707,2.99692491,2019.7,2019.6,43.13417]
[1743077466008,2.00680491,2019.7,2019.6,43.13417]
[1743077466209,2.99692491,2019.7,2019.6,40.8]
[1743077466508,0.99031,2019.4,2019.3,0.99028]
[1743077466813,0.99031,2019.4,2019.3,40.8]
[1743077467013,0.99031,2019.4,2019.3,41.79032]
[1743077467211,0.99031,2019.4,2019.3,40.8]
[1743077467414,1.68461,2019.4,2019.3,41.79032]
[1743077467814,3.03831,2019.4,2019.3,41.79032]
[1743077468312,0.99038,2019.3,2019.2,0.99032]
[1743077468517,3.02568,2019.3,2019.2,0.99032]
[1743077468713,2.0353,2019.3,2019.2,0.99032]
[1743077469013,2.0353,2019.3,2019.2,2.33122]
[1743077469916,3.02562,2019.3,2019.2,2.33122]
[1743077470307,2.0353,2019.3,2019.2,2.33122]
[1743077471517,2.0353,2019.3,2019.2,43.13122]
[1743077472313,0.99023,2019.6,2019.5,0.99019]
[1743077472518,2.40473,2019.6,2019.5,0.99019]
[1743077472721,2.40467,2019.6,2019.5,0.99019]
[1743077473119,1.4145,2019.6,2019.5,0.99019]
[1743077473423,0.7098,2019.6,2019.5,0.99019]
[1743077473630,21.2135046,2019.7,2019.6,0.99017]
[1743077473923,0.9902,2019.6,2019.4,1.3616]
[1743077474129,3.0852,2019.6,2019.5,0.99017]
[1743077474529,0.99022,2019.5,2019.4,2.35183]
[1743077474827,0.99031,2019.4,2019.3,0.99027]
[1743077475033,1.65651,2019.4,2019.3,2.38807]
[1743077475529,1.65651,2019.4,2019.3,0.99027]
[1743077478328,1.65647,2019.4,2019.3,2.36857]
[1743077481620,1.65647,2019.4,2019.3,2.36862]
[1743077488834,0.99027,2019.4,2019.3,2.36862]
[1743077491430,2.31567,2019.5,2019.4,0.99027]
[1743077491634,2.31567,2019.5,2019.4,2.39357]
[1743077492630,2.31567,2019.5,2019.2,40.8]
[1743077492933,2.31567,2019.5,2018.6,3.2078]
[1743077492934,0.99056,2018.8,2018.6,3.2078]
[1743077493243,0.99056,2018.8,2018.5,2.35448]
[1743077493535,0.99056,2018.8,2018.6,0.99065]
[1743077493735,0.99056,2018.8,2018.7,0.99805491]
[1743077493937,0.99056,2018.8,2018.7,0.00744491]
[1743077494137,2.37286,2018.8,2018.7,0.00744491]
[1743077494338,2.06420453,2018.9,2018.8,0.99056]
[1743077494636,0.99056,2018.9,2018.8,2.33366]
[1743077494831,3.80102,2019.3,2018.9,2.47629]
[1743077495143,3.80102,2019.3,2019.1,0.99037]
[1743077495144,2.37269,2019.2,2019.1,0.99037]
[1743077495431,2.37269,2019.2,2019.1,1.3431]
[1743077495837,0.99047,2019.0,2018.9,0.99049]
[1743077496537,0.99047,2019.0,2018.7,5.69170491]
[1743077496538,0.99056,2018.8,2018.7,0.99804491]
[1743077496937,0.99056,2018.8,2018.7,2.36784491]
[1743077497138,0.99052,2018.9,2018.8,0.99051]
[1743077497336,0.99052,2018.9,2018.8,2.36031]
[1743077497736,5.5549,2019.0,2018.9,0.99051]
[1743077497930,5.5549,2019.0,2018.9,3.03011]
[1743077498735,4.1983,2019.0,2018.9,3.03011]
[1743077498944,3.2078,2019.0,2018.9,3.03011]
[1743077499237,4.19827,2019.0,2018.9,3.03011]
[1743077502739,3.2078,2019.0,2018.9,3.03011]
[1743077503645,4.19827,2019.0,2018.9,3.03011]
[1743077504447,4.19827,2019.0,2018.9,2.36031]
[1743077504647,5.52367,2019.0,2018.9,2.36031]
[1743077505051,5.52367,2019.0,2018.9,1.3698]
[1743077505244,0.99056,2018.8,2018.7,0.00744491]
[1743077505953,2.37276,2018.8,2018.7,0.00744491]
[1743077506351,2.47655,2018.7,2018.3,0.99078]
[1743077506547,0.99081,2018.4,2018.3,2.39641]
[1743077507053,2.37301,2018.4,2018.3,2.39641]
[1743077507250,2.37301,2018.4,2018.3,1.4056]
[1743077507440,2.37301,2018.4,2018.3,2.39641]
[1743077507846,2.37301,2018.4,2018.3,1.4056]
[1743077508653,2.37301,2018.4,2018.3,2.39641]
[1743077509052,2.37301,2018.4,2018.3,1.4056]
[1743077511154,2.37301,2018.4,2018.3,2.39641]
[1743077511550,2.37301,2018.4,2018.3,1.4056]
[1743077511757,2.37301,2018.4,2018.3,2.39641]
[1743077511961,4.19854,2018.5,2018.4,0.99076]
[1743077512159,0.00744491,2018.6,2018.5,0.99071]
[1743077512458,0.00744491,2018.6,2018.5,42.45141]
[1743077512664,0.99052,2019.0,2018.9,0.99048]
[1743077513254,0.99052,2019.0,2018.9,1.3326]
[1743077513559,1.3624,2019.1,2018.5,42.45138]
[1743077513560,2.36027641,2019.1,2018.5,42.45138]
[1743077513772,0.99061,2018.7,2018.6,1.3326]
[1743077514063,0.99061,2018.7,2018.6,2.32326]
[1743077514557,2.2883,2018.8,2018.7,0.99061]
[1743077514753,4.87784,2018.9,2018.8,0.99056]
[1743077514954,3.2078,2018.9,2018.8,1.69156]
[1743077515155,4.19831,2018.9,2018.8,1.69156]
[1743077515358,4.19831,2018.9,2018.8,3.08616]
[1743077517266,4.19831,2018.9,2018.8,2.0956]
[1743077517764,4.19831,2018.9,2018.8,3.08616]
[1743077517957,4.19831,2018.9,2018.8,2.0956]
[1743077518155,4.19831,2018.9,2018.8,1.3946]
[1743077518360,0.99066,2018.7,2018.6,0.99065]
[1743077518964,2.3914,2018.8,2018.7,0.99061]
[1743077519366,0.99066,2018.7,2018.6,0.99063]
[1743077519551,2.39146,2018.7,2018.6,2.34273]
[1743077520458,2.39146,2018.7,2018.6,1.3521]
[1743077520967,2.39146,2018.7,2018.6,2.34276]
[1743077521763,2.39146,2018.7,2018.6,1.3521]
[1743077521964,2.39146,2018.7,2018.6,2.34276]
[1743077522667,2.39146,2018.7,2018.6,1.3521]
[1743077522863,2.39146,2018.7,2018.6,2.34276]
[1743077524163,0.9906,2018.8,2018.7,0.99061]
[1743077524367,0.9906,2018.8,2018.7,2.33241]
[1743077527665,0.9906,2018.8,2018.7,1.3418]
[1743077527871,2.3999,2018.8,2018.7,2.33241]
[1743077528873,0.9906,2018.8,2018.7,2.33241]
[1743077529266,4.19833,2018.9,2018.8,0.99056]
[1743077529572,4.19833,2018.9,2018.8,2.31176]
[1743077530471,3.2078,2018.9,2018.8,2.31176]
[1743077531172,4.19831,2018.9,2018.8,2.31176]
[1743077531674,3.2078,2018.9,2018.8,2.31176]
[1743077532476,4.19831,2018.9,2018.8,2.31176]
[1743077532875,3.2078,2018.9,2018.8,2.31176]
[1743077533475,4.19831,2018.9,2018.8,2.31176]
[1743077533675,5.52431,2018.9,2018.8,2.31176]
[1743077533972,4.19831,2018.9,2018.8,2.31176]
[1743077535874,3.2078,2018.9,2018.8,2.31176]
[1743077536283,2.31651,2019.0,2018.9,0.99051]
[1743077536483,2.31651,2019.0,2018.9,3.00451]
[1743077538890,5.52431,2019.0,2018.9,2.014]
[1743077539088,0.99061,2018.8,2018.7,0.99058]
[1743077539391,0.99061,2018.8,2018.7,2.36398]
[1743077539592,2.30001,2018.8,2018.7,2.36398]
[1743077540092,2.30001,2018.8,2018.7,0.99058]
[1743077540289,2.30001,2018.8,2018.7,2.36398]
[1743077541989,3.06490319,2018.9,2018.8,0.99056]
[1743077542188,2.06380324,2018.9,2018.8,2.34636]
[1743077542382,2.35785,2018.9,2018.8,2.34636]
[1743077543191,3.35992875,2018.9,2018.8,2.34636]
[1743077544493,1.00207875,2018.9,2018.8,2.34636]
[1743077544686,7.63473199,2019.0,2018.9,0.99051]
[1743077544892,6.27363199,2019.0,2018.9,2.31521]
[1743077546093,4.1983,2019.0,2018.9,2.31521]
[1743077550294,4.1983,2019.0,2018.9,2.98081]
[1743077551198,4.1983,2019.0,2018.8,0.99056]
[1743077551199,0.99051,2018.9,2018.8,0.99056]
[1743077551397,1.68241,2018.9,2018.8,1.3298]
[1743077551604,1.68241,2018.9,2018.8,2.32036]
[1743077551798,1.68241,2018.9,2018.8,1.3298]
[1743077551998,1.68241,2018.9,2018.8,2.32036]
[1743077553499,0.99051,2018.9,2018.8,2.32036]
[1743077555302,4.28105324,2019.0,2018.9,0.99051]
[1743077555303,4.19829,2019.0,2018.9,0.99051]
[1743077555500,0.00492965,2019.2,2019.1,0.99042]
[1743077555800,21.21349969,2019.5,2019.4,0.99027]
[1743077556305,23.20209801,2019.5,2019.4,0.99027]
[1743077556696,2.07305664,2019.5,2019.4,2.28707]
[1743077556897,1.07467832,2019.5,2019.4,2.28707]
[1743077557096,22.20367969,2019.6,2019.5,0.99022]
[1743077557297,21.21349969,2019.6,2019.5,2.28702]
[1743077557497,22.20366969,2019.6,2019.5,2.28702]
[1743077558503,21.21349969,2019.6,2019.5,2.28702]
[1743077559696,22.20366969,2019.6,2019.5,2.28702]
[1743077560108,21.21349969,2019.6,2019.5,2.28702]
[1743077560701,22.20366969,2019.6,2019.5,2.28702]
[1743077562907,21.21349969,2019.6,2019.5,2.28702]
[1743077565804,22.20366969,2019.6,2019.5,2.28702]
[1743077566106,21.21349969,2019.6,2019.5,2.28702]
[1743077566404,21.21349969,2019.6,2019.5,5.49482]
[1743077566606,17.78656898,2019.6,2019.5,5.49482]
[1743077566809,16.51476898,2019.6,2019.5,7.99482]
[1743077567003,15.31797898,2019.6,2019.5,48.79482]
[1743077567203,11.02684898,2019.6,2019.5,48.79482]
[1743077567410,9.88117898,2019.6,2019.5,48.79482]
[1743077567712,9.88117898,2019.6,2019.5,46.29482]
[1743077567908,9.88117898,2019.6,2019.5,48.79482]
[1743077568215,8.80457898,2019.6,2019.5,48.79482]
[1743077569013,1.4096,2019.9,2019.8,0.99007]
[1743077570412,1.4096,2019.9,2019.8,2.36957]
[1743077571300,1.4096,2019.9,2019.8,3.01817]
[1743077572311,2.39962,2019.9,2019.8,2.36957]
[1743077572510,2.39962,2019.9,2019.8,0.99007]
[1743077572815,1.4096,2019.9,2019.8,2.30787]
[1743077573004,2.39962,2019.9,2019.8,2.30787]
[1743077573407,2.39962,2019.9,2019.8,0.99007]
[1743077574505,0.99007,2019.8,2019.7,0.6475]
[1743077574711,0.99017,2019.7,2019.6,0.99014]
[1743077575107,2.41937,2019.7,2019.6,0.99014]
[1743077575307,2.41937,2019.7,2019.6,2.32034]
[1743077575708,1.4292,2019.7,2019.6,2.32034]
[1743077575910,0.99001,2020.0,2019.6,3.80554]
[1743077576105,1.4292,2019.8,2019.7,3.00632]
[1743077576310,2.41927,2019.8,2019.7,2.32032]
[1743077576716,1.4292,2019.8,2019.7,2.32032]
[1743077578321,1.4292,2019.8,2019.7,2.98152]
[1743077578519,3.2078,2020.4,2019.9,2.47507]
[1743077578722,1.364,2020.0,2019.9,0.99002]
[1743077581015,2.35398,2020.0,2019.9,0.99002]
[1743077581423,1.364,2020.0,2019.9,0.99002]
[1743077581923,0.6833,2020.3,2020.0,2.47484]
[1743077582121,0.6833,2020.3,2020.0,0.98998]
[1743077582122,1.3596,2020.1,2020.0,0.98998]
[1743077582524,0.6833,2020.3,2020.2,0.98988]
[1743077582724,0.6833,2020.3,2020.1,0.98988]
[1743077582919,0.98997,2020.1,2020.0,0.98995]
[1743077583921,2.41747,2020.1,2020.0,0.98995]
[1743077585632,0.99002,2020.0,2019.9,0.98999]
[1743077585824,3.12322,2020.0,2019.9,0.98999]
[1743077587732,0.99002,2019.9,2019.8,4.85743]
[1743077587929,2.31602,2019.9,2019.8,4.85743]
[1743077588233,1.326,2019.9,2019.8,4.85743]
[1743077588734,1.326,2019.9,2019.8,5.56713]
[1743077589528,1.326,2019.9,2019.8,4.85743]
[1743077590928,2.31602,2019.9,2019.8,4.85743]
[1743077591331,1.326,2019.9,2019.8,4.85743]
[1743077591735,2.31602,2019.9,2019.8,4.85743]
[1743077591936,1.326,2019.9,2019.8,4.85743]
[1743077592134,2.31602,2019.9,2019.8,4.85743]
[1743077593340,1.326,2019.9,2019.8,4.85743]
[1743077593638,2.31602,2019.9,2019.8,4.85743]
[1743077593835,1.326,2019.9,2019.8,4.85743]
[1743077594040,0.98988,2020.3,2019.9,0.99002]
[1743077594335,1.3783,2020.1,2020.0,0.98998]
[1743077594537,1.3783,2020.1,2020.0,2.29808]
[1743077595034,0.7064,2020.3,2020.2,0.98988]
[1743077595639,0.7064,2020.3,2020.2,1.68238]
[1743077596446,2.0642,2020.3,2020.2,3.03918]
[1743077599141,0.98988,2020.2,2020.1,3.2078]
[1743077599346,2.37008,2020.2,2020.1,0.9899]
[1743077601947,2.37008,2020.2,2020.1,2.3501]
[1743077602142,1.3802,2020.2,2020.1,2.3501]
[1743077602752,2.37008,2020.2,2020.1,2.3501]
[1743077605051,1.3802,2020.2,2020.1,2.3501]
[1743077605253,2.37008,2020.2,2020.1,2.3501]
[1743077605453,1.3802,2020.2,2020.1,2.3501]
[1743077606647,2.37008,2020.2,2020.1,2.3501]
[1743077607049,0.98993,2020.1,2020.0,0.6636]
[1743077607245,0.99002,2019.9,2019.8,4.19783]
[1743077607561,0.99002,2019.9,2019.8,5.52813]
[1743077607754,1.65532,2020.0,2019.9,0.99002]
[1743077607951,1.65532,2020.0,2019.9,2.32032]
[1743077608156,1.65532,2020.0,2019.9,1.3303]
[1743077608357,1.65532,2020.0,2019.9,2.32032]
[1743077608556,0.99002,2019.9,2019.8,4.19785]
[1743077608759,0.99002,2019.9,2019.8,3.2078]
[1743077609059,0.99002,2019.9,2019.8,4.19787]
[1743077609452,0.99002,2019.9,2019.8,5.61637]
[1743077610957,1.04307587,2020.1,2019.8,4.6263]
[1743077611156,2.47446,2020.4,2019.9,3.89345]
[1743077611460,0.9899,2020.2,2020.1,0.98989]
[1743077611853,0.98987,2020.3,2020.2,0.98987]
[1743077612053,2.03296655,2020.4,2020.3,0.98983]
[1743077612548,0.98982,2020.4,2020.3,0.98983]
[1743077612755,2.71601655,2020.5,2020.4,0.98978]
[1743077613060,0.98982,2020.4,2020.3,0.98979]
[1743077613263,0.98982,2020.4,2020.3,2.41679]
[1743077613649,0.6831,2020.5,2020.2,0.00742611]
[1743077613650,0.98983,2020.3,2020.2,0.00742611]
[1743077614255,1.65903,2020.3,2020.2,0.00742611]
[1743077615463,1.65903,2020.3,2020.2,0.99730611]
[1743077615963,1.65903,2020.3,2020.2,0.00742611]
[1743077616167,1.65903,2020.3,2020.2,0.99730611]
[1743077616656,0.6692,2020.3,2020.2,0.99730611]
[1743077616854,1.65903,2020.3,2020.2,0.99730611]
[1743077617054,2.70217655,2020.3,2020.2,0.99730611]
[1743077617965,1.65903,2020.3,2020.2,0.99730611]
[1743077618957,0.98998,2020.0,2019.9,1.6955]
[1743077619158,0.98998,2020.0,2019.9,0.7055]
[1743077619463,0.99021,2019.6,2019.5,0.99016]
[1743077619654,0.99021,2019.6,2019.5,1.65882]
[1743077621562,0.99021,2019.6,2019.5,0.6686]
[1743077621769,0.99022,2019.5,2019.4,2.40105]
[1743077622068,1.69712,2019.5,2019.4,2.40107]
[1743077622259,1.69712,2019.5,2019.3,1.70460611]
[1743077622260,0.99027,2019.4,2019.3,1.70460611]
[1743077622460,0.99027,2019.4,2019.3,0.71432611]
[1743077622769,0.99027,2019.4,2019.3,0.00742611]
[1743077623167,0.99027,2019.4,2019.3,0.99774611]
[1743077623369,0.99027,2019.4,2019.3,2.36054611]
[1743077624161,4.90494,2019.5,2019.4,0.99027]
[1743077624361,4.90494,2019.5,2019.4,2.36007]
[1743077624664,3.2078,2019.5,2019.4,2.36007]
[1743077624868,7.53717,2019.7,2019.6,0.99017]
[1743077625372,8.83017,2019.7,2019.6,0.99017]
[1743077625773,8.83017,2019.7,2019.6,2.35997]
[1743077626662,8.83017,2019.7,2019.6,1.3698]
[1743077626862,0.99017,2019.6,2019.5,0.7142]
[1743077627070,2.34157,2019.6,2019.5,2.0696]
[1743077627284,2.34157,2019.6,2019.5,3.05982]
[1743077627966,2.34157,2019.6,2019.5,2.0696]
[1743077628167,2.34157,2019.6,2019.5,3.05982]
[1743077628367,2.34157,2019.6,2019.5,2.0696]
[1743077628567,2.34157,2019.6,2019.5,3.05982]
[1743077629072,2.34157,2019.6,2019.5,1.70442]
[1743077629271,1.3514,2019.6,2019.3,0.99772611]
[1743077629575,0.99027,2019.4,2019.3,0.99772611]
[1743077629871,0.99027,2019.4,2019.3,2.38732611]
[1743077630082,2.33357,2019.4,2019.3,2.38732611]
[1743077630281,2.33357,2019.4,2019.3,1.39702611]
[1743077630484,2.33357,2019.4,2019.3,0.99774611]
[1743077630877,2.33357,2019.4,2019.3,2.38734611]
[1743077632989,2.33357,2019.4,2019.3,0.99774611]
[1743077633287,2.33357,2019.4,2019.3,1.44092611]
[1743077634087,2.99147,2019.4,2019.3,1.44092611]
[1743077634279,2.99147,2019.4,2019.3,2.43124611]
[1743077634879,2.99147,2019.4,2019.3,1.44092611]
[1743077636985,2.99147,2019.4,2019.3,2.43124611]
[1743077637385,2.99147,2019.4,2019.3,43.23124611]
[1743077638086,2.99147,2019.4,2019.3,42.24092611]
[1743077638287,5.68334,2019.6,2019.4,0.99022]
[1743077638481,1.4094,2019.5,2019.4,0.99022]
[1743077639689,2.39967,2019.5,2019.4,0.99022]
[1743077639984,1.4094,2019.5,2019.4,0.99022]
[1743077640191,4.198,2019.6,2019.5,0.99022]
[1743077640582,3.2078,2019.6,2019.5,0.99022]
[1743077641290,4.19797,2019.6,2019.5,0.99022]
[1743077644996,0.99027,2019.5,2019.4,0.99023]
[1743077645289,3.02277,2019.5,2019.4,0.99023]
[1743077645990,2.32337,2019.5,2019.4,0.99023]
[1743077646490,1.3331,2019.5,2019.4,0.99023]
[1743077646793,2.32332,2019.5,2019.4,0.99023]
[1743077646988,3.2078,2019.9,2019.5,0.99022]
[1743077647189,2.32322,2019.8,2019.7,0.99004]
[1743077647390,1.3331,2019.8,2019.7,0.99004]
[1743077647690,0.98998,2020.0,2019.9,0.99002]
[1743077647893,2.32308,2020.0,2019.9,0.99002]
[1743077650597,3.48656718,2020.2,2020.1,0.98993]
[1743077650598,2.00171718,2020.2,2020.1,0.98993]
[1743077650894,2.13356705,2020.2,2020.1,0.98993]
[1743077651095,0.98988,2020.2,2020.1,0.98993]
[1743077651293,1.85828705,2020.3,2020.2,0.98988]
[1743077651492,1.14368705,2020.3,2020.2,0.98988]
[1743077651689,6.06928768,2020.5,2020.4,0.98978]
[1743077651891,7.05905768,2020.5,2020.4,0.98978]
[1743077652189,6.0472205,2020.5,2020.4,0.98978]
[1743077653087,7.4246205,2020.5,2020.4,0.98978]
[1743077653493,6.28093345,2020.5,2020.4,0.98978]
[1743077653997,6.28093345,2020.5,2020.3,0.98979]
[1743077653998,0.98985,2020.4,2020.3,0.98979]
[1743077654195,2.40175,2020.4,2020.3,0.98979]
[1743077657886,1.4119,2020.4,2020.3,0.98979]
[1743077658489,2.40168,2020.4,2020.3,0.98979]
[1743077658689,1.4119,2020.4,2020.3,0.98979]
[1743077658892,2.40168,2020.4,2020.3,0.98979]
[1743077660390,0.98983,2020.3,2020.2,1.3246]
[1743077660598,2.4749,2020.1,2019.7,3.2078]
[1743077660795,0.99007,2019.9,2019.8,2.30841]
[1743077661093,3.1245,2020.0,2019.9,0.99002]
[1743077661300,2.1345,2020.0,2019.9,2.30842]
[1743077663206,0.98987,2020.3,2020.2,0.98983]
[1743077663399,1.67747,2020.3,2020.2,0.98983]
[1743077664205,0.6876,2020.3,2020.2,0.98983]
[1743077664595,2.0196,2020.3,2020.2,0.98983]
[1743077664900,3.00943,2020.3,2020.2,0.98983]
[1743077665102,2.0196,2020.3,2020.2,2.40863]
[1743077665301,3.00943,2020.3,2020.2,2.40863]
[1743077665603,2.0196,2020.3,2020.2,2.40863]
[1743077665801,3.00943,2020.3,2020.2,0.98983]
[1743077667104,0.98988,2020.2,2020.1,2.35518]
[1743077667304,2.29308,2020.2,2020.1,2.35518]
[1743077667998,1.3032,2020.2,2020.1,2.35518]
[1743077668303,0.98993,2020.1,2020.0,1.66663]
[1743077668900,2.29313,2020.1,2020.0,3.03193]
[1743077669402,1.3032,2020.1,2020.0,3.03193]
[1743077669608,2.29313,2020.1,2020.0,3.03193]
[1743077670411,2.29313,2020.1,2020.0,0.6767]
[1743077670603,2.29313,2020.1,2020.0,1.66668]
[1743077671112,2.29313,2020.1,2020.0,0.6767]
[1743077671304,0.98998,2020.0,2019.9,1.2949]
[1743077671500,0.99002,2019.9,2019.8,1.67483]
[1743077671696,0.99002,2019.9,2019.8,2.96973]
[1743077671907,2.32742,2019.9,2019.8,2.96973]
[1743077672107,1.3374,2019.9,2019.8,2.96973]
[1743077672709,1.4307,2020.1,2020.0,0.98998]
[1743077672911,2.42063,2020.1,2020.0,0.98998]
[1743077673706,2.42063,2020.1,2020.0,1.69658]
[1743077674007,1.4307,2020.1,2020.0,1.69658]
[1743077674315,2.42063,2020.1,2020.0,0.98998]
[1743077674500,1.4307,2020.1,2020.0,0.98998]
[1743077674705,2.42063,2020.1,2020.0,0.98998]
[1743077674904,1.4307,2020.1,2020.0,0.98998]
[1743077675505,2.42063,2020.1,2020.0,0.98998]
[1743077676403,1.4307,2020.1,2020.0,0.98998]
[1743077676904,2.42063,2020.1,2020.0,0.98998]
[1743077677102,1.4307,2020.1,2020.0,0.98998]
[1743077677704,2.42063,2020.1,2020.0,0.98998]
[1743077678102,1.4307,2020.1,2020.0,0.98998]
[1743077678307,2.42063,2020.1,2020.0,0.98998]
[1743077679515,1.4307,2020.1,2020.0,0.98998]
[1743077679719,5.21070015,2020.2,2020.1,0.98993]
[1743077680016,5.56678,2020.2,2020.1,0.98993]
[1743077680420,1.3691,2020.2,2020.1,0.98993]
[1743077680716,1.3691,2020.2,2020.1,1.65133]
[1743077681021,1.3691,2020.2,2020.1,3.00103]
[1743077682520,2.41773,2020.3,2020.2,0.98988]
[1743077682717,1.4279,2020.3,2020.2,3.06668]
[1743077683716,2.41773,2020.3,2020.2,1.67258]
[1743077688219,2.41773,2020.3,2020.2,3.10728]
[1743077688522,3.43083092,2020.3,2020.2,3.10728]
[1743077691217,3.43083092,2020.3,2020.2,0.6827]
[1743077691526,0.98993,2020.2,2020.1,0.98989]
[1743077691827,0.98993,2020.2,2020.1,2.37009]
[1743077691828,2.34183,2020.2,2020.1,2.37009]
[1743077692027,2.34183,2020.2,2020.1,1.3802]
[1743077692225,6.3014,2020.2,2019.7,4.1979]
[1743077692425,0.99007,2019.8,2019.5,2.0415]
[1743077692618,0.99017,2019.6,2019.5,1.65152]
[1743077693126,0.99027,2019.4,2019.3,4.20551611]
[1743077693329,0.99027,2019.4,2019.3,5.58571611]
[1743077694821,2.34216,2019.5,2019.4,0.99027]
[1743077695027,2.34216,2019.5,2019.4,3.00617]
[1743077695220,1.3519,2019.5,2019.4,3.00617]
[1743077695417,1.3519,2019.5,2019.4,3.65757]
[1743077696122,2.34212,2019.5,2019.4,3.65757]
[1743077696325,2.34212,2019.5,2019.4,1.65567]
[1743077697023,2.34212,2019.5,2019.4,0.6654]
[1743077697219,2.34212,2019.5,2019.3,4.20552611]
[1743077697220,0.99027,2019.4,2019.3,4.20552611]
[1743077697418,2.34387,2019.4,2019.3,4.20552611]
[1743077697828,2.34387,2019.4,2019.3,3.21522611]
[1743077698921,2.34387,2019.4,2019.3,4.20554611]
[1743077700221,2.34387,2019.4,2019.3,0.00742611]
[1743077700424,5.55167,2019.4,2019.3,0.00742611]
[1743077700929,5.55167,2019.4,2019.3,0.99774611]
[1743077701125,5.2167,2019.4,2019.3,0.99774611]
[1743077701338,6.20697,2019.4,2019.3,0.99774611]
[1743077702136,5.2167,2019.4,2019.3,0.99774611]
[1743077703431,3.2078,2019.4,2019.3,41.79774611]
[1743077704027,4.516,2019.4,2019.3,41.79774611]
[1743077704338,6.17307,2019.4,2019.3,0.00742611]
[1743077704629,6.88407,2019.4,2019.3,0.00742611]
[1743077705029,6.88407,2019.4,2019.3,0.99774611]
[1743077705334,6.88407,2019.4,2019.3,0.00742611]
[1743077706932,8.02470613,2019.4,2019.3,0.00742611]
[1743077707325,0.99051,2018.9,2018.8,3.00243]
[1743077707636,0.99056,2018.8,2018.7,3.2078]
[1743077707928,0.99061,2018.7,2018.6,40.8]
[1743077708332,2.33201,2018.7,2018.6,40.8]
[1743077708537,0.99066,2018.6,2018.5,2.28561]
[1743077708737,2.33206,2018.6,2018.5,2.28561]
[1743077708940,3.2078,2018.8,2018.7,0.99061]
[1743077709534,3.2078,2018.8,2018.7,3.03551]
[1743077710351,0.00742611,2018.9,2018.8,0.99056]
[1743077710639,0.00742611,2018.9,2018.8,2.31846]
[1743077710838,1.3582,2019.1,2019.0,0.99047]
[1743077711435,1.3582,2019.1,2019.0,1.66967]
[1743077711835,3.21516345,2019.3,2019.2,0.99037]
[1743077712134,0.99768345,2019.3,2019.2,0.99037]
[1743077712442,0.00736345,2019.3,2019.2,0.99037]
[1743077713340,1.42026345,2019.3,2019.2,0.99037]
[1743077713541,1.42026345,2019.3,2019.2,41.79037]
[1743077713944,0.00736345,2019.3,2019.2,42.48557]
[1743077714135,3.2078,2019.6,2019.5,0.99022]
[1743077715037,3.2078,2019.6,2019.5,2.34082]
[1743077715238,4.5834,2019.6,2019.5,2.34082]
[1743077716145,5.57357,2019.6,2019.5,2.34082]
[1743077716444,4.5834,2019.6,2019.5,2.34082]
[1743077716834,5.57357,2019.6,2019.5,2.34082]
[1743077717235,5.57357,2019.6,2019.5,0.99022]
[1743077718844,0.99022,2019.5,2019.4,0.99025]
[1743077719037,3.00402,2019.5,2019.4,0.99025]
[1743077720842,2.0138,2019.5,2019.4,0.99025]
[1743077721348,0.99027,2019.4,2019.3,1.3872]
[1743077721541,0.99032,2019.3,2019.2,1.68555]
[1743077723744,2.36611,2019.4,2019.3,0.99032]
[1743077723946,2.36611,2019.4,2019.3,2.35342]
[1743077724343,1.3758,2019.4,2019.3,2.35342]
[1743077724549,1.3758,2019.4,2019.3,3.05402]
[1743077725546,1.14255258,2019.6,2019.3,2.0637]
[1743077725754,1.14255258,2019.6,2019.5,0.99022]
[1743077726042,4.26423258,2019.8,2019.7,0.99012]
[1743077726250,2.84683258,2019.8,2019.7,0.99012]
[1743077726646,2.84683258,2019.8,2019.7,2.29432]
[1743077726853,1.70428,2019.8,2019.7,2.29432]
[1743077727239,0.99012,2019.7,2019.6,1.68927]
[1743077727445,0.7142,2019.8,2019.7,0.99012]
[1743077727649,1.7043,2019.8,2019.7,2.36922]